Cogmind - Beta 15 @@@ ROGUE MODE // 2025.08.27 @ 18:54:24 Player: BlobtheGreat Result: Destroyed by 1L-4RJ(R) with Subdweller Machine Gun Performance ------------- Evolutions (0) 0 Regions Visited (2) 400 Robots Destroyed (32) 160 Value Destroyed (567) 567 Prototype IDs (0) 0 Alien Tech Used (0) 0 Bonus (0) 0 TOTAL SCORE: 1127 Bonus ------- None Cogmind --------- Core Integrity 0/250 Matter 207/300 Energy 100/100 System Corruption 0% Temperature Cool (0) Movement Rolling (110) Ox2 Location -10/Subcaves Parts ------- > --- POWER (1) -------- (None) > --- PROPULSION (2) --- Light Treads Wheel > --- UTILITY (2) ------ Scrap Shield > --- WEAPON (2) ------- Assault Rifle Hammer > --- INVENTORY (5) ---- Subdweller Power Source Aluminum Leg Small Laser Light Assault Rifle Grenade Launcher Peak State ------------ > --- POWER ------------ Subdweller Power Source > --- PROPULSION ------- Light Treads Wheel > --- UTILITY ---------- Scrap Shield > --- WEAPON ----------- Assault Rifle Light Assault Rifle > --- INVENTORY -------- Ion Engine Aluminum Leg Grenade Launcher Hammer [Rating: 10] Favorites ----------- Power Light Ion Engine Engine Light Ion Engine Propulsion Light Treads Treads Light Treads Leg Aluminum Leg Wheel Wheel Utility Seismic Detector Device Seismic Detector Storage Large Storage Unit Protection Weapon Shielding Weapon Assault Rifle Ballistic Gun Assault Rifle Launcher Grenade Launcher Impact Weapon Hammer Build | -11 -10 -10 ------- Run | Yrd Mat Sub Slots Evolved . | . . . Power . | . . . Propulsion . | . . . Utility . | . . . Weapon . | . . . Parts Attached 24 | 7 6 11 Power 4 | 1 1 2 Engine 4 | 1 1 2 Core . | . . . Reactor . | . . . Propulsion 7 | 2 3 2 Treads 5 | 2 3 . Leg 1 | . . 1 Wheel 1 | . . 1 Hover . | . . . Flight . | . . . Utility 7 | 2 2 3 Device 2 | 1 1 . Storage 2 | 1 1 . Processor . | . . . Hackware . | . . . Protection 3 | . . 3 Artifact . | . . . Weapon 6 | 2 . 4 Energy Gun . | . . . Energy Cannon . | . . . Ballistic Gun 4 | 2 . 2 Ballistic Cannon . | . . . Launcher 1 | . . 1 Special Weapon . | . . . Impact Weapon 1 | . . 1 Slashing Weapon . | . . . Piercing Weapon . | . . . Special Melee Weapon . | . . . Unidentified Prototypes . | . . . Parts Lost 7 | . . 7 Power 2 | . . 2 Propulsion 2 | . . 2 Utility 1 | . . 1 Weapon 2 | . . 2 Highest Loss Streak 5 | . . 5 To Critical Strikes . | . . . Average Backups 9 | 4 9 9 Power 1 | . 1 1 Propulsion 3 | 3 3 2 Utility 2 | . 2 2 Weapon 2 | . 2 3 Tool/Special . | . . . Unused Backups 8 | . 2 6 Power 1 | . . 1 Propulsion 3 | . 1 2 Utility 3 | . 1 2 Weapon 1 | . . 1 Tool/Special . | . . . Average Slot Usage (%) 96 | . 100 91 Engine 13 | . 14 11 Treads 23 | . 28 15 Leg 2 | . . 7 Wheel 1 | . . 4 Device 9 | . 14 1 Storage 12 | . 14 9 Protection 4 | . . 12 Ballistic Gun 27 | . 28 25 Peak Build Rating 10 | 7 8 10 Average Rating 7 | 6 7 8 On Entrance 5 | . 7 8 Naked Turns . | . . . Heaviest Build 31 | 13 28 31 Greatest Support 40 | 40 40 40 Greatest Overweight (x) 2 | . . 2 Average Overweight (x) . | . . 1 Largest Inventory Capacity 15 | 8 15 15 Average Capacity 11 | 7 11 11 Most Carried 15 | 7 15 15 Average Carried 9 | 5 9 10 Final Capacity 15 | 8 15 5 Final Carried 15 | 7 15 5 Class Distribution -------------------- 100% | Mutant Dominant Class ---------------- Mutant | -10/Materials Mutant | -10/Subcaves Resources | -11 -10 -10 ----------- Run | Yrd Mat Sub Matter Collected 962 | 348 394 220 Remotely . | . . . Salvage Created 874 | 167 465 242 Parts 69 | 15 38 16 Haulers Intercepted 1 | . 1 . Recyclers Shooed 2 | 2 . . Parts Field Recycled . | . . . Retrieved Matter . | . . . Parts Self-Destructed 8 | . . 8 Prevented . | . . . Kills | -11 -10 -10 ------- Run | Yrd Mat Sub Combat Hostiles Destroyed 23 | . 14 9 Guns 17 | . 14 3 AOE 6 | . . 6 Classes Destroyed 10 | 3 5 2 Worker 1 | 1 . . Builder 1 | . 1 . Tunneler 3 | 3 . . Hauler 1 | . 1 . Recycler 1 | 1 . . Watcher 2 | . 2 . Swarmer 13 | . 9 4 Grunt 5 | . 5 . Artisan 2 | . . 2 Subdweller 5 | . . 5 Best Kill Streak 8 | 3 8 4 Combat Bots Only 5 | . 5 4 Max Kills in Single Turn 2 | 1 2 2 Gunslinging . | . . . Exploded 2 | . . 2 Melee . | . . . Uniques/NPCs Destroyed . | . . . Combat | -11 -10 -10 -------- Run | Yrd Mat Sub Hostile Shots Fired 141 | . 67 74 Missed 41 | . 21 20 Hits 100 | . 46 54 Projectile 100 | . 46 54 Critical Strikes 2 | . . 2 Actively Blocked 2 | . . 2 Damage Taken 1616 | . 453 1163 Core 251 | . 87 164 Absorbed by Shields . | . . . Redirected to Shielding 97 | . . 97 Core Remaining (%) 100 | 100 . . Volleys Fired 90 | 13 54 23 Largest 2 | 2 2 2 Hottest 40 | 40 40 40 Shots Fired 171 | 26 108 37 Gun 162 | 26 108 28 Cannon . | . . . Launcher 9 | . . 9 Special . | . . . Kinetic 162 | 26 108 28 Thermal . | . . . Explosive 9 | . . 9 Electromagnetic . | . . . Robot Hit Streak 23 | 3 9 23 Robot Miss Streak 5 | 2 5 1 Penetration Max . | . . . Secondary Targets 2 | . 2 . Max Gunslinging Chain 1 | . 1 . Shots Hit Robots 112 | 15 59 38 Core Hits 50 | 6 25 19 Critical Kills . | . . . Critical Parts Destroyed 3 | 1 . 2 Critical Strikes 3 | 1 . 2 Destroy 1 | 1 . . Smash 2 | . . 2 Melee Attacks 26 | . . 26 Impact 26 | . . 26 Slashing . | . . . Piercing . | . . . Sneak Attacks 2 | . . 2 Combat Hostiles . | . . . Follow-up Attacks . | . . . Damage Inflicted 2288 | 203 828 1257 Guns 1254 | 203 809 242 Cannons . | . . . Explosions 633 | . . 633 Melee 382 | . . 382 Ramming 19 | . 19 . Kinetic 1254 | 203 809 242 Thermal . | . . . Explosive 633 | . . 633 Electromagnetic . | . . . Impact 382 | . . 382 Slashing . | . . . Piercing . | . . . Highest Corruption . | . . . Average Corruption . | . . . Corruption Purged . | . . . Corruption Blocked . | . . . Overload Shots . | . . . Overflow Damage 178 | . . 178 Projectiles . | . . . Explosions 92 | . . 92 Melee 86 | . . 86 Knockbacks 1 | . 1 . Impact 1 | . 1 . Kinetic . | . . . Secondary . | . . . Self-Inflicted Damage 192 | . . 192 Shots 6 | . . 6 Rammed 5 | . 5 . Targets Rammed 5 | . 5 . Kicked . | . . . Crushed . | . . . Highest Temperature . | . . . Average Temperature . | . . . Received Heat Transfer 192 | . 90 102 Siege Activations . | . . . Martial Activations . | . . . Shielding Activations . | . . . Robots Disrupted . | . . . Combat Hostiles . | . . . Robots Corrupted . | . . . Combat Hostiles . | . . . Parts Fried . | . . . Impact Corruptions 3 | . . 3 Robots Melted . | . . . Combat Hostiles . | . . . Parts Melted 1 | . . 1 Heat Transferred . | . . . Parts Sabotaged . | . . . Parts Stolen . | . . . Parts Stripped . | . . . Power Chain Reactions . | . . . Alert | -11 -10 -10 ------- Run | Yrd Mat Sub Maximum Alert Level . | . . . Low Security (%) 100 | 100 100 . Level 1 . | . . . Level 2 . | . . . Level 3 . | . . . Level 4 . | . . . Level 5 . | . . . High Security . | . . . Max Security . | . . . Peak Influence 188 | 5 188 . Initial . | . . . Average 31 | . 34 . Influence Increases 656 | 25 416 215 Destroy 0b10 Robot/C 360 | . 280 80 Destroy 0b10 Robot/NC 45 | 25 20 . Destroy Leader 56 | . 56 . Successful Hack 28 | . 28 . Select Force Hacks 30 | . 30 . Destroy Structure 2 | . 2 . Lose Combat Pursuer 135 | . . 135 Influence Decreases 656 | 25 416 215 Time Decay 656 | 25 416 215 Squads Dispatched 3 | . 3 . Investigation 2 | . 2 . Extermination . | . . . Reinforcement 1 | . 1 . Assault . | . . . Garrison . | . . . Intercept . | . . . Searches Triggered . | . . . Construction Impeded . | . . . Haulers Reinforced . | . . . Active Scanning Responses . | . . . Cargo Convoy Interrupts . | . . . Stealth | -11 -10 -10 --------- Run | Yrd Mat Sub Distress Signals 4 | . 4 . Communications Jammed . | . . . Distress Signals . | . . . Times Spotted 44 | . 25 19 Peak Tracking Total 6 | . 6 4 Tactical Retreats 4 | . . 4 Traps | -11 -10 -10 ------- Run | Yrd Mat Sub Traps Triggered 2 | . 2 . Indirectly . | . . . Trap Hack Attempts . | . . . Triggered . | . . . Disarmed . | . . . Reprogrammed . | . . . Reused . | . . . Traps Extracted . | . . . Installed . | . . . Triggered . | . . . Machines | -11 -10 -10 ---------- Run | Yrd Mat Sub Machines Disabled . | . . . Max in Single Turn . | . . . Machines Repaired . | . . . Machines Dismantled . | . . . Machines Sabotaged . | . . . Overloaded Fab Kills . | . . . Hacking | -11 -10 -10 --------- Run | Yrd Mat Sub Machines Accessed 9 | . 7 2 Terminals 6 | . 6 . Fabricators . | . . . Repair Stations . | . . . Recycling Units 1 | . 1 . Scanalyzers . | . . . Garrison Access . | . . . Total Hacks 19 | . 17 2 Successful 12 | . 10 2 Failed 6 | . 6 . Catastrophic . | . . . Database Lockouts 1 | . 1 . Manual 17 | . 17 . Terminals 16 | . 16 . Fabricators . | . . . Repair Stations . | . . . Recycling Units 1 | . 1 . Scanalyzers . | . . . Garrison Access . | . . . Terminal Hacks 4 | . 2 2 Record 1 | . . 1 Robot Analysis 1 | . 1 . Open Door 1 | . . 1 Locate Traps 1 | . 1 . Fabricator Hacks . | . . . Repair Station Hacks . | . . . Recycling Unit Hacks . | . . . Scanalyzer . | . . . Garrison Access Hacks . | . . . Unauthorized Hacks 8 | . 8 . Terminals 7 | . 7 . Botnet 2 | . 2 . Skim 5 | . 5 . Fabricators . | . . . Repair Stations . | . . . Recycling Units 1 | . 1 . Tunnel 1 | . 1 . Scanalyzers . | . . . Garrison Access . | . . . Data Cores Recovered . | . . . Used . | . . . Hacking Detections 6 | . 6 . Full Trace Events . | . . . Feedback Events . | . . . Feedback Blocked . | . . . Robot Schematics Acquired . | . . . Robots Built . | . . . Authchips . | . . . Time . | . . . Total Robot Build Rating . | . . . Part Schematics Acquired . | . . . Parts Built . | . . . Authchips . | . . . Time . | . . . Total Part Build Rating . | . . . Parts Repaired . | . . . Time . | . . . Parts Recycled . | . . . Recycled Matter . | . . . Retrieved Matter . | . . . Retrieved Components . | . . . Parts Scanalyzed . | . . . Part Schematics Acquired . | . . . Parts Damaged . | . . . Bothacking | -11 -10 -10 ------------ Run | Yrd Mat Sub Used RIF Installer . | . . . Robots Hacked . | . . . Non-combat . | . . . Combat . | . . . Robot Hacks Applied . | . . . Relay Couplers Released . | . . . Fabnet Peak Effective % . | . . . Robots Rewired . | . . . Allies Hacked . | . . . Hacks Repelled . | . . . Allies | -11 -10 -10 -------- Run | Yrd Mat Sub Total Allies . | . . . Largest Group . | . . . Highest-Rated Group . | . . . Highest-Rated Ally . | . . . Total Orders . | . . . Ally Attacks . | . . . Total Damage . | . . . Kills . | . . . Allies Corrupted . | . . . Allies Melted . | . . . Intel | -11 -10 -10 ------- Run | Yrd Mat Sub Active Infowar (turns) 2203 | 125 1997 81 Seismic 2203 | 125 1997 81 Robot Analysis Total 1 | . 1 . Derelict Logs Recovered 2 | . . 2 Drone Launches . | . . . Drone Recoveries . | . . . Exploration | -11 -10 -10 ------------- Run | Yrd Mat Sub Turns Passed 3280 | 185 1997 1098 Spaces Moved 1425 | 83 820 522 Core 3 | 3 . . Treads 1178 | 80 820 278 Legs . | . . . Wheels 244 | . . 244 Hover . | . . . Flight . | . . . Fastest Speed 50 | 50 160 110 Average Speed 164 | 156 160 173 Slowest Speed 240 | 160 160 240 Overloaded Moves . | . . . Propulsion Burnouts . | . . . Robots Hopped . | . . . Potential Cave-ins . | . . . Cave-ins Triggered . | . . . Exploration Rate (%) 40 | 4 88 28 Regions Visited 2 Branch Regions 1 Pre-discovered Areas 1 | . 1 . Known Exits Taken 1 | . 1 . Unknown Exits Taken 1 | 1 . . Scrap Searched . | . . . Spaces Dug 21 | . . 21 Terrain Destroyed 56 | . . 56 Melee 4 | . . 4 Projectile . | . . . AOE 52 | . . 52 Terrain Rammed . | . . . Walls Destroyed . | . . . Machines Disabled . | . . . Actions | -11 -10 -10 --------- Run | Yrd Mat Sub Total 2145 | 109 1396 640 Wait 523 | . 495 28 Move 1423 | 82 819 522 Hop . | . . . Pick Up 22 | 7 9 6 Fast Attach 8 | 7 . 1 Attach 9 | . . 9 Detach 3 | . . 3 Swap 17 | . 7 10 Drop 19 | . 7 12 Fire 90 | 13 54 23 Melee 26 | . . 26 Ram . | . . . Kick . | . . . Crush 5 | . 5 . Escape Stasis . | . . . Rewire . | . . . Trap . | . . . Miscellaneous . | . . . Route ------- -11/Scrapyard -10/Materials (discovered 5 exits: *Mat x3 / *Min / *Sub) -10/Subcaves (discovered 3 exits: *Mat x2 / Rec) History --------- Turn | Location | Event 20 | -11/Scrapyard | Discovered new exit (range 16) 186 | -11/Scrapyard | Entered Materials 301 | -10/Materials | Build established: Mutant 322 | -10/Materials | Discovered new exit (range 15) 599 | -10/Materials | Discovered new exit (range 9) 686 | -10/Materials | Derelicts attacked the area 1662 | -10/Materials | Central database locked down 1706 | -10/Materials | Learned Storage trap positions 1742 | -10/Materials | Identified exit to Materials 1784 | -10/Materials | Identified exit to Mines 1784 | -10/Materials | Identified exit to Subcaves 1805 | -10/Materials | Learned 2 Storage zone layouts 1833 | -10/Materials | Learned Storage security intel 2183 | -10/Materials | Entered Subcaves 2184 | -10/Subcaves | Approached by a straggling Scientist 2184 | -10/Subcaves | Identified exit to Materials 2270 | -10/Subcaves | Core integrity fell below 50% 2299 | -10/Subcaves | Ambushed by angry Subdweller bent on revenge 2301 | -10/Subcaves | Lost 5 parts (1p1n1u2w) 2303 | -10/Subcaves | Core integrity fell below 20% 2676 | -10/Subcaves | Curiously followed by a Cobbler waking with a query about "LVR3C" 3003 | -10/Subcaves | Identified exit to Recycling 3210 | -10/Subcaves | Ambushed by Subdweller buried in earth 3249 | -10/Subcaves | Ambushed by angry Subdweller bent on revenge 3281 | -10/Subcaves | Destroyed by 1L-4RJ(R) with Subdweller Machine Gun Last Messages --------------- 03156_ KM-3KD(u) tweaks Twisted Machinery. 03211_ CL-PCZ(R): "GOODGOOD!" 03218_ CL-PCZ(R) suffers critical hit (Smash). 03218_ Destroyed Sub. Power Source. 03218_ CL-PCZ(R) system corrupted by crushing effect. 03221_ CL-PCZ(R) suffers critical hit (Smash). 03221_ Destroyed Sub. Machine Gun. 03221_ CL-PCZ(R) system corrupted by crushing effect. 03237_ KM-3KD(u) tweaks Twisted Machinery. 03244_ Sneak attack on KM-3KD(u). 03244_ KM-3KD(u) cries out in pain. 03244_ KM-3KD(u) destroyed. 03247_ F5-QKY(O) collects matter. 03249_ 1L-4RJ(R) angrily emerges from the Twisted Machinery. 03249_ 1L-4RJ(R): "WEHOME!" 03271_ F5-QKY(O) puts together Sub. Laser. 03271_ Ion Engine destroyed. Map ----- +----------------------------------------------------+ | | | | | | | | | | | | | | | | | ?????????????????????????????????????????????????? | | ?????????????????????????????????????????????????? | | ?????????????????????????????????????????????????? | | ?????????????????????????????????????????????????? | | ?????????????????????????????????????????????????? | | ?????????????????????????????????????????????????? | | ?????????????????????????????????????????????????? | | ?????????????????????????????????????????????????? | | ?????????????????????????????????????????????????? | | ?????????????????????????????????????????????????? | | ?????????????????????????????????????????????????? | | ?????????????????????????????????????????????????? | | ?????????????????????????????????????????????????? | | ?????????????????????????????????????????????????? | | ?###?????###???????????###???????????????????????? | | # ##?#### #??####????## ###????####?????????????? | | #?# #??# ##???# R ##??##""#?????????????? | | ### #### #????#"@ #### " #?????????????? | | #?# ## #???##" "O ##????????????? | | ????# ##?## =R" "" ####?????????? | | #????## ### *[|"""""" ##????????? | | #??### """" ####"" #????????? | | #### ### ##"""" #??##" ##????????? | | #?#### ##### #???#### #?????????? | | #???## #??# ####??# #?????????? | | ### ##### #?# # ##?## ##?????????? | | #?#### ### ## #### #??????????? | | #????# ###?# # # ####??????????? | | ?????# #???## #### #??????????????? | | ?????# ## ##???# #??## #?????????????? | | ?????## ####???# #????##?????????????? | | ??????## ### #??????# #???????????????????? | | ???????####?######??????## #???????????????????? | | ?????????????????????????## ???????????????????? | | ??????????????????????????# ???????????????????? | | ??????????????????????????# ??????????????????? | | ??????????????????????????## ???????????????????? | | ???????????????????????????? ???????????????????? | | ???????????????????????????? ???????????????????? | | ????????????????????????????# ???????????????????? | | ????????????????????????????? ???????????????????? | | ?????????????????????????????????????????????????? | +----------------------------------------------------+ Best States ------------- Heat Dissipation 25 Energy Generation 15 Energy Capacity 250 Matter Stores 300 Matter Capacity 300 Sight Range 16 Terrain Scan Density 10 Armor Coverage 800 Propulsion Shielding 33 Weapon Shielding 33 Evasion (%) 40 Recoil Reduction 2 Item Schematics ----------------- None Robot Schematics ------------------ None Fabricated ------------ Nothing Repaired ---------- Nothing Alien Tech Used ----------------- None Achievements -------------- None Challenges ------------ None Game ------ Seed GatlingImpulseShotgun Manual? 0 Play Time 00:18:44 Cumulative 112.4 hours Start 2025.08.27 @ 18:39:06 End 2025.08.27 @ 18:54:24 Sessions 1 Manual Loads 0 Difficulty Rogue Special Mode None Game No. 101 Rogue 101 Adventurer 0 Explorer 0 Win Type - Total 3 Types 3/0/0/0/0/0/0/0/0/0 Lore% 58 Gallery% 52 Achievement% 53 Wizard Run 0 Options --------- Layout 1 ASCII 0 Keyboard 1 Movement Arrows Keybinds 0 Fullscreen 1 Font 24/Smallcaps Map View 50x40 Zoom Use 0% Tactical HUD 1 Map Filters NONE Filters NONE Steam 1 RUN: 7e7b1201-d08a-48c2-87b4-ab1f02609187